fUSD/lending_fUSD_20260529
["ID","MTS","AMOUNT","RATE_DAILY","PERIOD"]
[423286938,1780026663000,-188.44606373,0.00031289,2]
[423286939,1780026663000,-219.37306589,0.00031318,7]
[423286915,1780026663000,-500.0,0.0003092,120]
[423286914,1780026663000,-4314.8,0.000309,120]
[423286916,1780026663000,-209.03147293,0.00031,120]
[423286924,1780026663000,-200.0,0.00031096,2]
[423286919,1780026663000,-209.03147293,0.00031,120]
[423286913,1780026663000,-1637.22092328,0.0003084,2]
[423286922,1780026663000,-1067.0,0.00031046,120]
[423286917,1780026663000,-682.29238522,0.00031,2]
[423286920,1780026663000,-500.0,0.00031,120]
[423286921,1780026663000,-283.61792291,0.00031,120]
[423286923,1780026663000,-195.7,0.00031072,120]
[423286925,1780026663000,-6580.74,0.000311,7]
[423286908,1780026663000,-1220.0,0.00030805,30]
[423286927,1780026663000,-1590.0,0.00031113,3]
[423286934,1780026663000,-803.403783,0.000312,7]
[423286947,1780026663000,-164.94429335,0.00031329,2]
[423286929,1780026663000,-1071.12,0.00031175,120]
[423286931,1780026663000,-535.39,0.000312,7]
[423286933,1780026663000,-637.340001,0.000312,7]
[423286937,1780026663000,-372.216669,0.000312,7]
[423286930,1780026663000,-948.0,0.00031184,8]
[423286926,1780026663000,-3699.58,0.000311,7]
[423286932,1780026663000,-555.78,0.000312,7]
[423286935,1780026663000,-1009.609999,0.000312,7]
[423286928,1780026663000,-1108.3,0.00031123,120]
[423287018,1780026664000,-306.56643812,0.00031331,7]
[423287005,1780026664000,-796.42830105,0.00031329,7]
[423287004,1780026664000,-584.46617492,0.00031329,7]
[423287003,1780026664000,-610.98904212,0.00031329,7]
[423287006,1780026664000,-657.33416582,0.00031329,7]
[423287001,1780026664000,-823.57551348,0.00031329,7]
[423287007,1780026664000,-788.5794233,0.00031329,7]
[423287000,1780026664000,-681.6472164,0.00031329,7]
[423287010,1780026664000,-506.07001486,0.00031329,7]
[423286999,1780026664000,-761.32363978,0.00031329,7]
[423286997,1780026664000,-318.84988709,0.00031329,7]
[423287002,1780026664000,-310.45099771,0.00031329,7]
[423287019,1780026664000,-607.92379955,0.00031331,7]
[423287013,1780026664000,-160.42852072,0.00031331,7]
[423287011,1780026664000,-764.47911495,0.00031329,7]
[423287020,1780026664000,-304.58981375,0.00031331,7]
[423287014,1780026664000,-160.42531149,0.00031331,7]
[423287015,1780026664000,-160.42851659,0.00031331,7]
[423287017,1780026664000,-301.40472437,0.00031331,7]
[423287012,1780026664000,-160.49736034,0.00031331,7]
[423287016,1780026664000,-601.99193116,0.00031331,7]
[423287025,1780026664000,-160.42531756,0.00031331,7]
[423287021,1780026664000,-165.12243611,0.00031331,7]
[423287022,1780026664000,-160.42530055,0.00031331,7]
[423287008,1780026664000,-688.72185044,0.00031329,7]
[423287026,1780026664000,-340.62168414,0.00031331,7]
[423287009,1780026664000,-333.78511381,0.00031329,7]
[423286998,1780026664000,-229.33649753,0.00031329,7]
[423287041,1780026664000,-522.34402998,0.00031331,7]
[423286992,1780026664000,-770.11690927,0.00031329,7]
[423287023,1780026664000,-160.42531152,0.00031331,7]
[423286969,1780026664000,-168.76782053,0.00031329,2]
[423286970,1780026664000,-308.46677127,0.00031329,7]
[423286971,1780026664000,-501.21687962,0.00031329,7]
[423286972,1780026664000,-168.220635,0.00031329,7]
[423286976,1780026664000,-168.79527724,0.00031329,7]
[423286973,1780026664000,-165.50485674,0.00031329,7]
[423286975,1780026664000,-157.25564073,0.00031329,7]
[423286974,1780026664000,-167.87644384,0.00031329,7]
[423286981,1780026664000,-161.49030433,0.00031329,7]
[423286982,1780026664000,-453.03871415,0.00031329,7]
[423286984,1780026664000,-315.28025558,0.00031329,7]
[423286979,1780026664000,-729.91910638,0.00031329,2]
[423286978,1780026664000,-449.8075737,0.00031329,7]
[423286983,1780026664000,-441.42006145,0.00031329,7]
[423286977,1780026664000,-164.36888274,0.00031329,7]
[423286980,1780026664000,-1313.42224828,0.00031329,7]
[423286986,1780026664000,-170.74865275,0.00031329,7]
[423286994,1780026664000,-340.66294342,0.00031329,7]
[423286985,1780026664000,-634.49126615,0.00031329,7]
[423286995,1780026664000,-723.40083595,0.00031329,7]
[423286996,1780026664000,-809.01978244,0.00031329,7]
[423286988,1780026664000,-486.95905239,0.00031329,7]
[423286990,1780026664000,-587.82795927,0.00031329,7]
[423286991,1780026664000,-168.82248044,0.00031329,7]
[423286989,1780026664000,-695.56136862,0.00031329,7]
[423286987,1780026664000,-389.71941271,0.00031329,7]
[423286993,1780026664000,-700.19144759,0.00031329,7]
[423287024,1780026664000,-160.42851735,0.00031331,7]
[423287050,1780026664000,-499.09612419,0.00031331,7]
[423287031,1780026664000,-160.4253173,0.00031331,7]
[423287056,1780026664000,-423.2260397,0.00031331,7]
[423287061,1780026664000,-708.05498156,0.00031331,7]
[423287058,1780026664000,-823.24237418,0.00031331,7]
[423287065,1780026664000,-635.04399326,0.00031331,7]
[423287063,1780026664000,-562.13129836,0.00031331,7]
[423287060,1780026664000,-331.00823145,0.00031331,7]
[423287062,1780026664000,-664.11635584,0.00031331,7]
[423287064,1780026664000,-529.41031767,0.00031331,7]
[423287066,1780026664000,-159.34080076,0.00031331,7]
[423287069,1780026664000,-304.82514643,0.00031331,7]
[423287068,1780026664000,-213.04846433,0.00031331,7]
[423287070,1780026664000,-660.56526917,0.00031331,7]
[423287059,1780026664000,-164.94811919,0.00031331,7]
[423287072,1780026664000,-600.64699541,0.00031331,7]
[423287074,1780026664000,-324.43114156,0.00031331,7]
[423287073,1780026664000,-164.02260231,0.00031331,7]
[423287075,1780026664000,-829.83953739,0.00031331,7]
[423287076,1780026664000,-161.87142922,0.00031331,7]
[423287077,1780026664000,-648.14826849,0.00031331,7]
[423287080,1780026664000,-551.37323193,0.00031331,7]
[423287079,1780026664000,-869.78135325,0.00031331,7]
[423287083,1780026664000,-744.28540954,0.00031342,7]
[423287081,1780026664000,-168.95311079,0.00031331,7]
[423287082,1780026664000,-798.8027429,0.00031331,7]
[423287084,1780026664000,-747.49807595,0.00031348,5]
[423287032,1780026664000,-160.42850854,0.00031331,7]
[423287078,1780026664000,-636.35054888,0.00031331,7]
[423287057,1780026664000,-166.20206057,0.00031331,7]
[423287071,1780026664000,-709.41380059,0.00031331,7]
[423287046,1780026664000,-661.15135715,0.00031331,7]
[423287027,1780026664000,-160.49731709,0.00031331,7]
[423287067,1780026664000,-618.10849409,0.00031331,7]
[423287028,1780026664000,-160.70734615,0.00031331,7]
[423287030,1780026664000,-612.09059583,0.00031331,7]
[423287029,1780026664000,-635.26213049,0.00031331,7]
[423287033,1780026664000,-406.19395241,0.00031331,7]
[423287034,1780026664000,-155.5235617,0.00031331,7]
[423287035,1780026664000,-327.18449977,0.00031331,7]
[423287036,1780026664000,-457.99628692,0.00031331,7]
[423287043,1780026664000,-348.934414,0.00031331,7]
[423287042,1780026664000,-613.76524063,0.00031331,7]
[423287040,1780026664000,-160.42531587,0.00031331,7]
[423287037,1780026664000,-160.4253198,0.00031331,7]
[423287039,1780026664000,-160.42531781,0.00031331,7]
[423287038,1780026664000,-160.69199126,0.00031331,7]
[423287085,1780026664000,-458.76058214,0.00031349,5]
[423287086,1780026664000,-1647.74,0.0003135,15]
[423287055,1780026664000,-301.55018014,0.00031331,7]
[423287044,1780026664000,-160.45909009,0.00031331,7]
[423287047,1780026664000,-319.01564937,0.00031331,7]
[423287052,1780026664000,-726.8315098,0.00031331,7]
[423287048,1780026664000,-160.49733697,0.00031331,7]
[423287045,1780026664000,-170.45189406,0.00031331,7]
[423287054,1780026664000,-402.80754317,0.00031331,7]
[423287049,1780026664000,-308.9980516,0.00031331,7]
[423287051,1780026664000,-439.84777493,0.00031331,7]
[423287053,1780026664000,-835.34770017,0.00031331,7]
[423287128,1780026665000,-250.0,0.00031688,7]
[423287126,1780026665000,-1395.31,0.00031638,2]
[423287124,1780026665000,-954.86539539,0.00031569,2]
[423287122,1780026665000,-2546.65,0.00031562,10]
[423287119,1780026665000,-4579.05238369,0.00031507,30]
[423287121,1780026665000,-2761.0,0.0003154,2]
[423287120,1780026665000,-500.0,0.00031507,7]
[423287123,1780026665000,-3000.0,0.00031563,60]
[423287118,1780026665000,-826.0,0.00031507,120]
[423287130,1780026665000,-250.0,0.00031688,7]
[423287125,1780026665000,-1108.3,0.00031616,120]
[423287134,1780026665000,-948.0,0.00031739,9]
[423287143,1780026665000,-2007.0,0.00031794,30]
[423287129,1780026665000,-250.0,0.00031688,7]
[423287131,1780026665000,-250.0,0.00031688,7]
[423287137,1780026665000,-3624.0,0.0003178,30]
[423287136,1780026665000,-3978.0,0.0003178,30]
[423287139,1780026665000,-1131.0,0.0003178,30]
[423287138,1780026665000,-1198.0,0.0003178,30]
[423287132,1780026665000,-6580.74,0.000317,7]
[423287140,1780026665000,-3749.0,0.0003178,30]
[423287133,1780026665000,-3699.58,0.000317,7]
[423287142,1780026665000,-1566.0,0.00031794,30]
[423287141,1780026665000,-1108.3,0.00031781,120]
[423287144,1780026665000,-1371.0,0.00031805,30]
[423287127,1780026665000,-200.83310984,0.0003167,30]
[423287135,1780026665000,-2318.0,0.00031753,3]
[423287117,1780026665000,-488.61879521,0.00031507,120]
[423287091,1780026665000,-677.64274398,0.00031361,7]
[423287108,1780026665000,-348.99946378,0.000314,30]
[423287090,1780026665000,-554.63080055,0.00031361,7]
[423287145,1780026665000,-1220.0,0.00031805,30]
[423287087,1780026665000,-414.00856295,0.00031361,7]
[423287088,1780026665000,-491.45959357,0.00031361,7]
[423287089,1780026665000,-163.29326204,0.00031361,7]
[423287092,1780026665000,-173.0522868,0.00031361,7]
[423287102,1780026665000,-609.13872775,0.00031365,7]
[423287094,1780026665000,-166.39104305,0.00031361,7]
[423287093,1780026665000,-585.29386708,0.00031361,7]
[423287095,1780026665000,-707.32256884,0.00031361,7]
[423287098,1780026665000,-462.7893129,0.00031361,2]
[423287097,1780026665000,-457.66138496,0.00031361,7]
[423287096,1780026665000,-160.35581611,0.00031361,7]
[423287116,1780026665000,-10420.0467,0.000315,120]
[423287103,1780026665000,-745.73447689,0.00031369,7]
[423287101,1780026665000,-660.09473194,0.00031365,7]
[423287099,1780026665000,-301.5555004,0.00031365,7]
[423287105,1780026665000,-324.03231756,0.00031369,7]
[423287115,1780026665000,-150.0,0.000315,120]
[423287112,1780026665000,-588.49,0.00031433,15]
[423287106,1780026665000,-1108.3,0.0003137,120]
[423287114,1780026665000,-150.0,0.000315,2]
[423287109,1780026665000,-961.27,0.00031412,7]
[423287107,1780026665000,-767.67842973,0.00031377,7]
[423287110,1780026665000,-1051.77,0.00031412,7]
[423287111,1780026665000,-500.0,0.0003143,22]
[423287104,1780026665000,-555.81542163,0.00031369,2]
[423287113,1780026665000,-200.82064334,0.000315,2]
[423287100,1780026665000,-523.42570188,0.00031365,7]
[423287146,1780026665000,-5630.0,0.00031805,30]
[423287167,1780026665000,-150.0,0.000319,2]
[423287148,1780026665000,-727.0,0.00031805,30]
[423287179,1780026665000,-372.127038,0.000319,7]
[423287180,1780026665000,-372.127038,0.000319,7]
[423287183,1780026665000,-899.662535,0.000319,7]
[423287184,1780026665000,-899.662535,0.000319,7]
[423287187,1780026665000,-200.384655,0.000319,7]
[423287185,1780026665000,-899.662535,0.000319,7]
[423287188,1780026665000,-150.0,0.000319,2]
[423287189,1780026665000,-151.0,0.000319,7]
[423287147,1780026665000,-2729.0,0.00031805,30]
[423287191,1780026665000,-904.27002355,0.00031911,7]
[423287199,1780026665000,-912.39888298,0.00031923,2]
[423287201,1780026665000,-951.65454972,0.00031923,7]
[423287200,1780026665000,-875.23930948,0.00031923,7]
[423287192,1780026665000,-869.58390258,0.00031912,7]
[423287190,1780026665000,-151.0,0.000319,7]
[423287197,1780026665000,-820.97931479,0.00031923,7]
[423287193,1780026665000,-960.09456637,0.00031921,7]
[423287194,1780026665000,-1573.50442741,0.00031923,7]
[423287196,1780026665000,-1783.90465734,0.00031923,7]
[423287198,1780026665000,-1641.77781035,0.00031923,7]
[423287195,1780026665000,-1327.72794354,0.00031923,7]
[423287202,1780026665000,-852.0590205,0.00031923,7]
[423287204,1780026665000,-955.59889369,0.00031923,7]
[423287203,1780026665000,-821.66770728,0.00031923,7]
[423287205,1780026665000,-752.48991395,0.00031924,7]
[423287207,1780026665000,-765.11324478,0.00031924,7]
[423287206,1780026665000,-794.07766312,0.00031924,7]
[423287182,1780026665000,-372.127038,0.000319,7]
[423287181,1780026665000,-372.127038,0.000319,7]
[423287186,1780026665000,-899.662535,0.000319,7]
[423287171,1780026665000,-150.0,0.000319,2]
[423287150,1780026665000,-150.0,0.00031858,2]
[423287152,1780026665000,-488.61879521,0.00031898,120]
[423287151,1780026665000,-188.44606373,0.00031868,2]
[423287178,1780026665000,-617.382173,0.000319,7]
[423287153,1780026665000,-150.0,0.000319,2]
[423287155,1780026665000,-150.0,0.000319,2]
[423287157,1780026665000,-4314.8,0.000319,120]
[423287156,1780026665000,-150.0,0.000319,2]
[423287154,1780026665000,-150.0,0.000319,2]
[423287158,1780026665000,-150.0,0.000319,2]
[423287162,1780026665000,-150.0,0.000319,2]
[423287159,1780026665000,-150.0,0.000319,2]
[423287164,1780026665000,-150.0,0.000319,2]
[423287149,1780026665000,-355.0,0.00031843,14]
[423287160,1780026665000,-150.0,0.000319,2]
[423287163,1780026665000,-150.0,0.000319,2]
[423287173,1780026665000,-150.0,0.000319,2]
[423287174,1780026665000,-388.08100701,0.000319,30]
[423287168,1780026665000,-150.0,0.000319,2]
[423287177,1780026665000,-617.382173,0.000319,7]
[423287166,1780026665000,-150.0,0.000319,2]
[423287176,1780026665000,-617.382173,0.000319,7]
[423287165,1780026665000,-150.0,0.000319,2]
[423287170,1780026665000,-150.0,0.000319,2]
[423287172,1780026665000,-150.0,0.000319,2]
[423287169,1780026665000,-150.0,0.000319,2]
[423287161,1780026665000,-150.0,0.000319,2]
[423287175,1780026665000,-617.382173,0.000319,7]
[423287237,1780026666000,-1499.0388216,0.00032,120]
[423287230,1780026666000,-825.11841493,0.00031959,7]
[423287233,1780026666000,-1310.51395044,0.00032,30]
[423287231,1780026666000,-761.42340968,0.00031959,7]
[423287232,1780026666000,-959.59803716,0.00031971,7]
[423287234,1780026666000,-1000.0,0.00032,49]
[423287236,1780026666000,-3322.75653301,0.00032,120]
[423287235,1780026666000,-165.0,0.00032,60]
[423287239,1780026666000,-1163.64571644,0.00032,120]
[423287240,1780026666000,-1711.01944286,0.00032,120]
[423287244,1780026666000,-2711.41466775,0.00032,120]
[423287250,1780026666000,-1005.98883108,0.00032,120]
[423287243,1780026666000,-842.45033694,0.00032,120]
[423287242,1780026666000,-1909.97106205,0.00032,120]
[423287245,1780026666000,-1312.11375118,0.00032,120]
[423287247,1780026666000,-263.87713695,0.00032,120]
[423287248,1780026666000,-1383.86144543,0.00032,120]
[423287246,1780026666000,-871.59852742,0.00032,120]
[423287227,1780026666000,-237.491094,0.00031924,7]
[423287241,1780026666000,-577.38111245,0.00032,120]
[423287229,1780026666000,-884.15321105,0.00031955,7]
[423287258,1780026666000,-3497.96759832,0.00032,120]
[423287238,1780026666000,-1607.35289844,0.00032,120]
[423287251,1780026666000,-2438.10507503,0.00032,120]
[423287210,1780026666000,-1044.18462521,0.00031924,7]
[423287209,1780026666000,-826.43919643,0.00031924,7]
[423287213,1780026666000,-793.80499158,0.00031924,7]
[423287212,1780026666000,-830.1454448,0.00031924,7]
[423287211,1780026666000,-885.06872695,0.00031924,7]
[423287208,1780026666000,-767.20655078,0.00031924,7]
[423287214,1780026666000,-772.63561762,0.00031924,7]
[423287217,1780026666000,-932.16809612,0.00031924,7]
[423287228,1780026666000,-930.35676193,0.00031935,7]
[423287215,1780026666000,-886.76725074,0.00031924,7]
[423287219,1780026666000,-151.613884,0.00031924,7]
[423287225,1780026666000,-289.12844,0.00031924,7]
[423287222,1780026666000,-151.613884,0.00031924,7]
[423287221,1780026666000,-151.613884,0.00031924,7]
[423287218,1780026666000,-998.50342862,0.00031924,7]
[423287226,1780026666000,-289.12844,0.00031924,7]
[423287220,1780026666000,-151.613884,0.00031924,7]
[423287223,1780026666000,-289.12844,0.00031924,7]
[423287224,1780026666000,-289.12844,0.00031924,7]
[423287216,1780026666000,-810.18533561,0.00031924,7]
[423287249,1780026666000,-681.91540307,0.00032,120]
[423287269,1780026666000,-2332.95,0.00032,14]
[423287264,1780026666000,-1192.28662968,0.00032,120]
[423287279,1780026666000,-500.0,0.00032147,14]
[423287281,1780026666000,-368.30440275,0.00032222,30]
[423287282,1780026666000,-948.0,0.00032294,9]
[423287288,1780026666000,-901.782342,0.00032329,7]
[423287286,1780026666000,-901.782342,0.00032329,7]
[423287289,1780026666000,-901.782342,0.00032329,7]
[423287284,1780026666000,-6689.40706694,0.000323,120]
[423287280,1780026666000,-8056.7,0.0003221,5]
[423287278,1780026666000,-1108.3,0.0003211,120]
[423287287,1780026666000,-901.782342,0.00032329,7]
[423287283,1780026666000,-910.11491188,0.000323,2]
[423287285,1780026666000,-901.782342,0.00032329,7]
[423287290,1780026666000,-901.782342,0.00032329,7]
[423287292,1780026666000,-901.782342,0.00032329,7]
[423287293,1780026666000,-901.782342,0.00032329,7]
[423287291,1780026666000,-901.782342,0.00032329,7]
[423287296,1780026666000,-901.782342,0.00032329,7]
[423287294,1780026666000,-901.782342,0.00032329,7]
[423287295,1780026666000,-901.782342,0.00032329,7]
[423287275,1780026666000,-200.0,0.00032055,2]
[423287274,1780026666000,-195.7,0.00032007,120]
[423287253,1780026666000,-1280.73281683,0.00032,120]
[423287273,1780026666000,-700.0,0.00032,2]
[423287271,1780026666000,-162.08,0.00032,120]
[423287263,1780026666000,-264.95350111,0.00032,120]
[423287254,1780026666000,-1861.37917285,0.00032,120]
[423287260,1780026666000,-1762.51986077,0.00032,2]
[423287257,1780026666000,-1265.04411309,0.00032,120]
[423287261,1780026666000,-150.0,0.00032,120]
[423287255,1780026666000,-944.71665519,0.00032,120]
[423287252,1780026666000,-1007.52292992,0.00032,120]
[423287298,1780026666000,-844.54130544,0.00032385,60]
[423287256,1780026666000,-1675.40697803,0.00032,120]
[423287262,1780026666000,-2000.00377005,0.00032,10]
[423287266,1780026666000,-166.46157409,0.00032,120]
[423287272,1780026666000,-501.529,0.00032,120]
[423287277,1780026666000,-833.92535152,0.00032093,2]
[423287265,1780026666000,-165.5959382,0.00032,120]
[423287268,1780026666000,-3000.0,0.00032,120]
[423287276,1780026666000,-668.65185756,0.00032093,2]
[423287297,1780026666000,-500.0,0.00032373,24]
[423287267,1780026666000,-500.0,0.00032,120]
[423287270,1780026666000,-178.087383,0.00032,120]
[423287259,1780026666000,-5634.71,0.00032,120]
[423287311,1780026668000,-2318.0,0.00032633,11]
[423287310,1780026668000,-163.0,0.00032633,11]
[423287308,1780026668000,-700.0,0.000325,90]
[423287309,1780026668000,-1108.3,0.00032603,120]
[423287307,1780026668000,-1000.0,0.000325,7]
[423287305,1780026668000,-1281.81406987,0.00032464,14]
[423287302,1780026668000,-1108.3,0.00032438,120]
[423287304,1780026668000,-9206.63593013,0.00032464,14]
[423287301,1780026668000,-535.39,0.000324,13]
[423287303,1780026668000,-188.44606373,0.00032448,2]
[423287299,1780026668000,-511.72476266,0.00032385,60]
[423287314,1780026668000,-158.692123,0.00032633,7]
[423287306,1780026668000,-1000.0,0.000325,2]
[423287313,1780026668000,-158.692123,0.00032633,7]
[423287300,1780026668000,-1643.7339319,0.00032385,60]
[423287315,1780026668000,-158.692123,0.00032633,7]
[423287312,1780026668000,-158.692123,0.00032633,7]
[423287329,1780026668000,-200.0,0.000328,11]
[423287327,1780026668000,-2007.0,0.00032794,30]
[423287321,1780026668000,-3749.0,0.0003278,30]
[423287325,1780026668000,-233.524757,0.0003278,7]
[423287319,1780026668000,-1198.0,0.0003278,30]
[423287324,1780026668000,-151.0,0.0003278,7]
[423287328,1780026668000,-4918.41164341,0.000328,2]
[423287318,1780026668000,-3624.0,0.0003278,30]
[423287323,1780026668000,-151.0,0.0003278,7]
[423287320,1780026668000,-1131.0,0.0003278,30]
[423287326,1780026668000,-1566.0,0.00032794,30]
[423287316,1780026668000,-1108.3,0.00032767,120]
[423287322,1780026668000,-151.0,0.0003278,7]
[423287317,1780026668000,-3978.0,0.0003278,30]
[423287364,1780026669000,-756.47681078,0.00032876,30]
[423287373,1780026669000,-1154.137718,0.00032876,7]
[423287362,1780026669000,-405.70641793,0.0003287,120]
[423287356,1780026669000,-1079.16295531,0.00032826,7]
[423287359,1780026669000,-1195.4588387,0.00032845,7]
[423287358,1780026669000,-2318.0,0.00032844,11]
[423287360,1780026669000,-948.0,0.00032848,10]
[423287363,1780026669000,-177.744918,0.00032874,14]
[423287357,1780026669000,-195.7,0.00032829,120]
[423287371,1780026669000,-151.0,0.00032876,7]
[423287368,1780026669000,-193.34322,0.00032876,7]
[423287369,1780026669000,-193.34322,0.00032876,7]
[423287365,1780026669000,-151.73607907,0.00032876,30]
[423287370,1780026669000,-193.34322,0.00032876,7]
[423287367,1780026669000,-193.34322,0.00032876,7]
[423287372,1780026669000,-667.030463,0.00032876,7]
[423287354,1780026669000,-711.47953175,0.00032817,2]
[423287375,1780026669000,-667.030463,0.00032876,7]
[423287385,1780026669000,-674.088751,0.00032876,7]
[423287376,1780026669000,-1154.137718,0.00032876,7]
[423287374,1780026669000,-151.0,0.00032876,7]
[423287366,1780026669000,-278.40526371,0.00032876,30]
[423287352,1780026669000,-1118.60171534,0.00032814,7]
[423287347,1780026669000,-918.13589374,0.00032814,7]
[423287353,1780026669000,-1198.20411435,0.00032814,7]
[423287378,1780026669000,-1154.137718,0.00032876,7]
[423287338,1780026669000,-1888.2053129,0.00032812,7]
[423287330,1780026669000,-1085.12402825,0.00032801,7]
[423287334,1780026669000,-2729.0,0.00032805,30]
[423287331,1780026669000,-1371.0,0.00032805,30]
[423287332,1780026669000,-1220.0,0.00032805,30]
[423287333,1780026669000,-5630.0,0.00032805,30]
[423287335,1780026669000,-727.0,0.00032805,30]
[423287336,1780026669000,-177.744918,0.00032809,14]
[423287337,1780026669000,-1011.43068845,0.00032812,7]
[423287339,1780026669000,-1593.27353224,0.00032812,7]
[423287341,1780026669000,-1970.13337242,0.00032812,7]
[423287344,1780026669000,-1141.98545966,0.00032812,7]
[423287345,1780026669000,-986.00124873,0.00032812,7]
[423287343,1780026669000,-1050.28717138,0.00032812,7]
[423287342,1780026669000,-1094.87865958,0.00032812,2]
[423287348,1780026669000,-996.17453376,0.00032814,7]
[423287346,1780026669000,-952.89319574,0.00032814,7]
[423287349,1780026669000,-952.56598989,0.00032814,7]
[423287340,1780026669000,-2140.68558881,0.00032812,7]
[423287351,1780026669000,-1064.12070088,0.00032814,7]
[423287361,1780026669000,-1151.51764459,0.00032862,7]
[423287350,1780026669000,-927.16274114,0.00032814,7]
[423287355,1780026669000,-1116.42811431,0.00032825,7]
[423287377,1780026669000,-667.030463,0.00032876,7]
[423287379,1780026669000,-667.030463,0.00032876,7]
[423287384,1780026669000,-4419.815268,0.00032876,7]
[423287407,1780026669000,-189.61897912,0.00032876,120]
[423287408,1780026669000,-210.674048,0.00032876,7]
[423287409,1780026669000,-210.674048,0.00032876,7]
[423287412,1780026669000,-1348.007108,0.00032876,7]
[423287419,1780026669000,-4101.394339,0.00032876,7]
[423287415,1780026669000,-1348.007108,0.00032876,7]
[423287414,1780026669000,-1348.007108,0.00032876,7]
[423287413,1780026669000,-1348.007108,0.00032876,7]
[423287417,1780026669000,-4101.394339,0.00032876,7]
[423287416,1780026669000,-4101.394339,0.00032876,7]
[423287405,1780026669000,-1775.187622,0.00032876,7]
[423287418,1780026669000,-4101.394339,0.00032876,7]
[423287422,1780026669000,-301.087025,0.00032876,7]
[423287421,1780026669000,-301.087025,0.00032876,7]
[423287424,1780026669000,-151.0,0.00032876,7]
[423287423,1780026669000,-301.087025,0.00032876,7]
[423287425,1780026669000,-3141.402971,0.00032876,7]
[423287427,1780026669000,-3141.402971,0.00032876,7]
[423287428,1780026669000,-3141.402971,0.00032876,7]
[423287381,1780026669000,-4419.815268,0.00032876,7]
[423287430,1780026669000,-924.46406754,0.00032876,7]
[423287429,1780026669000,-3141.402971,0.00032876,7]
[423287420,1780026669000,-301.087025,0.00032876,7]
[423287404,1780026669000,-901.782342,0.00032876,7]
[423287426,1780026669000,-195.16941,0.00032876,7]
[423287402,1780026669000,-1775.187622,0.00032876,7]
[423287406,1780026669000,-1775.187622,0.00032876,7]
[423287380,1780026669000,-1154.137718,0.00032876,7]
[423287382,1780026669000,-4419.815268,0.00032876,7]
[423287383,1780026669000,-4419.815268,0.00032876,7]
[423287387,1780026669000,-674.088751,0.00032876,7]
[423287397,1780026669000,-151.0,0.00032876,7]
[423287388,1780026669000,-674.088751,0.00032876,7]
[423287398,1780026669000,-151.0,0.00032876,7]
[423287386,1780026669000,-674.088751,0.00032876,7]
[423287389,1780026669000,-1298.758075,0.00032876,7]
[423287393,1780026669000,-1298.758075,0.00032876,7]
[423287394,1780026669000,-1906.742747,0.00032876,7]
[423287392,1780026669000,-1906.742747,0.00032876,7]
[423287391,1780026669000,-1298.758075,0.00032876,7]
[423287396,1780026669000,-1906.742747,0.00032876,7]
[423287390,1780026669000,-1298.758075,0.00032876,7]
[423287395,1780026669000,-1906.742747,0.00032876,7]
[423287410,1780026669000,-210.674048,0.00032876,7]
[423287399,1780026669000,-901.782342,0.00032876,7]
[423287400,1780026669000,-1775.187622,0.00032876,7]
[423287411,1780026669000,-210.674048,0.00032876,7]
[423287401,1780026669000,-901.782342,0.00032876,7]
[423287403,1780026669000,-901.782342,0.00032876,7]
[423287432,1780026670000,-5296.46493386,0.00032876,7]
[423287431,1780026670000,-568.53506614,0.00030223,2]
[423287433,1780026670000,-2338.17242803,0.00025208,2]
[423287434,1780026670000,-201.2406153,0.00027397,30]
[423287435,1780026670000,-1669.33046978,0.00032876,7]
[423287436,1780026670000,-3605.7418497,0.00032876,31]
[423287438,1780026670000,-3237.54315196,0.00032876,31]
[423287437,1780026670000,-380.25108037,0.00032876,31]
[423287439,1780026670000,-316.70764813,0.00032876,31]
[423287440,1780026670000,-87.31533721,0.00032876,7]
[423287449,1780026671000,-418.0,0.00024384,2]